bitfinex/quotes_BTCUSD_20240611
["timestamp","ask_amount","ask_price","bid_price","bid_amount"]
[1718119011149,0.01652556,67020.0,67019.0,0.18397429]
[1718119011401,0.19608509,67023.0,67022.0,0.149204]
[1718119011735,0.19608509,67030.0,67019.0,0.03276329]
[1718119011967,0.1,67028.0,67020.0,0.14431993]
[1718119012197,0.19608509,67026.0,67025.0,0.149198]
[1718119013521,0.19608509,67028.0,67022.0,0.002]
[1718119014006,0.19608509,67028.0,67020.0,0.14431993]
[1718119014254,0.19608509,67029.0,67027.0,0.149193]
[1718119014455,0.1,67028.0,67027.0,0.149193]
[1718119014681,0.29608509,67028.0,67027.0,0.149193]
[1718119015105,0.31348954,67028.0,67027.0,0.149193]
[1718119015996,0.31261065,67028.0,67027.0,0.149193]
[1718119016199,0.11652556,67028.0,67027.0,0.149193]
[1718119016407,0.01652556,67028.0,67027.0,0.1643123]
[1718119016785,0.11652556,67028.0,67027.0,0.1663123]
[1718119017601,0.3300151,67028.0,67027.0,0.1663123]
[1718119019193,0.31261065,67028.0,67027.0,0.1663123]
[1718119019397,0.3300151,67028.0,67027.0,0.1663123]
[1718119020194,0.01652556,67028.0,67027.0,0.1663123]
[1718119020403,0.01652556,67028.0,67027.0,0.31063223]
[1718119020627,0.19608509,67034.0,67033.0,0.14918]
[1718119020799,0.19608509,67034.0,67033.0,0.164098]
[1718119021010,0.07215996,67047.0,67033.0,0.164098]
[1718119021011,0.19608509,67041.0,67033.0,0.014918]
[1718119021248,0.19608509,67041.0,67028.0,0.10596662]
[1718119021455,0.21348954,67039.0,67038.0,0.149167]
[1718119021655,0.19608509,67035.0,67034.0,0.149177]
[1718119022081,0.19608509,67037.0,67036.0,0.149173]
[1718119022308,0.21348954,67037.0,67036.0,0.149173]
[1718119022660,0.21348954,67037.0,67036.0,0.1640903]
[1718119023704,0.19608509,67037.0,67036.0,0.1660903]
[1718119023909,0.21348954,67037.0,67036.0,0.1660903]
[1718119024498,0.21348954,67037.0,67036.0,0.1640903]
[1718119024917,0.21348954,67037.0,67036.0,0.0149173]
[1718119025126,0.07215996,67039.0,67027.0,0.0151193]
[1718119025127,0.19608509,67029.0,67027.0,0.0151193]
[1718119025344,0.21348954,67028.0,67027.0,0.1643123]
[1718119025973,0.21348954,67024.0,67023.0,0.149201]
[1718119026397,0.21348954,67024.0,67023.0,0.16721964]
[1718119027037,0.19608509,67024.0,67023.0,0.16721964]
[1718119027690,0.19608509,67027.0,67023.0,0.01801864]
[1718119027903,0.48258509,67029.0,67023.0,0.02001864]
[1718119028112,0.21348954,67027.0,67026.0,0.149193]
[1718119028310,0.21348954,67027.0,67026.0,0.1643123]
[1718119028995,0.21348954,67027.0,67026.0,0.149193]
[1718119030922,0.2300127,67027.0,67026.0,0.149193]
[1718119031505,0.2300127,67027.0,67026.0,0.151193]
[1718119032072,0.2300127,67027.0,67026.0,0.149193]
[1718119032280,0.2300127,67027.0,67026.0,0.151193]
[1718119032427,0.2300127,67027.0,67026.0,0.1663123]
[1718119033014,0.21260825,67027.0,67026.0,0.1663123]
[1718119033987,0.2300127,67027.0,67026.0,0.1663123]
[1718119034394,0.2300127,67027.0,67026.0,0.32103884]
[1718119039104,0.2300127,67027.0,67026.0,0.30591954]
[1718119041447,0.2300127,67027.0,67026.0,0.30592405]
[1718119044340,0.2300127,67027.0,67026.0,0.3832906]
[1718119045191,0.21260825,67027.0,67026.0,0.3832906]
[1718119045395,0.01652316,67027.0,67026.0,0.3832906]
[1718119045651,0.19608509,67030.0,67026.0,0.27242666]
[1718119045864,0.1,67031.0,67027.0,0.2320976]
[1718119045865,0.29608509,67031.0,67027.0,0.2320976]
[1718119046073,0.29608509,67031.0,67026.0,0.04032906]
[1718119046074,0.29608509,67031.0,67028.0,0.2320976]
[1718119046282,0.29608509,67031.0,67029.0,0.2320976]
[1718119046508,0.1,67037.0,67030.0,0.02724267]
[1718119046723,0.2845,67042.0,67039.0,0.149166]
[1718119046724,0.29608509,67040.0,67039.0,0.149166]
[1718119046936,0.29608509,67040.0,67039.0,0.38125641]
[1718119047354,0.1,67040.0,67039.0,0.38125641]
[1718119047591,0.1,67040.0,67039.0,0.41938205]
[1718119048008,0.31348954,67040.0,67039.0,0.41936986]
[1718119049109,0.29608509,67040.0,67039.0,0.41936986]
[1718119049322,0.29608509,67040.0,67039.0,0.41935473]
[1718119049744,0.31348954,67040.0,67039.0,0.41935473]
[1718119050394,0.1,67040.0,67039.0,0.42135475]
[1718119050777,0.31348954,67040.0,67039.0,0.42135475]
[1718119053890,0.60478954,67040.0,67039.0,0.42135475]
[1718119056338,0.60478954,67040.0,67039.0,0.26664601]
[1718119056544,0.60478954,67040.0,67039.0,0.42135421]
[1718119058723,0.99827347,67040.0,67039.0,0.23406257]
[1718119058942,0.21348954,67022.0,67021.0,0.04443187]
[1718119059156,0.21348954,67022.0,67017.0,0.08886375]
[1718119059157,0.21348954,67018.0,67017.0,0.04443187]
[1718119059361,0.19608509,67016.0,67010.0,0.1965]
[1718119059571,0.19608509,67016.0,67014.0,0.149221]
[1718119059773,0.01740445,67017.0,67014.0,0.149221]
[1718119059774,0.19608509,67015.0,67014.0,0.149221]
[1718119060005,0.1953023,67017.0,67015.0,0.149219]
[1718119060226,0.1953023,67019.0,67016.0,0.149217]
[1718119060428,0.1953023,67017.0,67016.0,0.149217]
[1718119060608,0.1953023,67020.0,67016.0,0.149217]
[1718119060762,0.1953023,67019.0,67017.0,0.149213]
[1718119060959,0.1953023,67019.0,67018.0,0.01957953]
[1718119060960,0.01658015,67019.0,67018.0,0.01957953]
[1718119061191,0.21188245,67019.0,67018.0,0.01957953]
[1718119061396,0.01658015,67019.0,67018.0,0.01957953]
[1718119061848,0.1953023,67019.0,67018.0,0.01957953]
[1718119062027,0.21270675,67011.0,67010.0,0.01771129]
[1718119062198,0.1953023,67011.0,67008.0,0.19366687]
[1718119062577,0.21270675,67009.0,67008.0,0.149235]
[1718119062782,0.1953023,67006.0,67003.0,0.149246]
[1718119062954,0.1953023,67005.0,67003.0,0.149246]
[1718119063171,0.01658015,67005.0,67003.0,0.149246]
[1718119063618,0.1953023,67007.0,67003.0,0.149246]
[1718119063844,0.01658015,67004.0,67003.0,0.149246]
[1718119064073,0.21188245,67004.0,67003.0,0.149246]
[1718119064302,0.1953023,67004.0,67003.0,0.149246]
[1718119064521,0.21172279,67004.0,67003.0,0.149246]
[1718119065922,0.21172279,67004.0,67003.0,0.16740908]
[1718119066128,0.21172279,67004.0,67003.0,0.19244264]
[1718119066504,0.22912724,67004.0,67003.0,0.19244264]
[1718119066704,0.22912724,67004.0,67003.0,0.19444264]
[1718119066980,0.22912724,67004.0,67003.0,0.16940908]
[1718119067190,0.52462724,67004.0,67003.0,0.01816308]
[1718119067608,0.31270675,67003.0,67002.0,0.000946]
[1718119067813,0.31270675,67003.0,67002.0,0.01916069]
[1718119068021,0.31270675,67003.0,67002.0,0.000946]
[1718119068232,0.32912724,67003.0,67002.0,0.000946]
[1718119068446,0.32912724,67003.0,67002.0,0.0179666]
[1718119070232,0.32912724,67003.0,67002.0,0.0199666]
[1718119072133,0.22912724,67003.0,67002.0,0.0199666]
[1718119072340,0.22912724,67003.0,67002.0,0.002946]
[1718119072800,0.01642049,67003.0,67002.0,0.002946]
[1718119073177,0.21172279,67003.0,67002.0,0.002946]
[1718119073378,0.22912724,67003.0,67002.0,0.152195]
[1718119075770,0.22912724,67003.0,67002.0,0.17124521]
[1718119076388,0.22912724,67003.0,67002.0,0.152195]
[1718119078282,0.32912724,67003.0,67002.0,0.002946]
[1718119078487,0.42852724,67003.0,67002.0,0.002946]
[1718119078699,0.61772724,67003.0,67002.0,0.002946]
[1718119079165,0.61772724,67003.0,67002.0,0.0201661]
[1718119080379,0.60032279,67003.0,67002.0,0.002946]
[1718119080579,0.31172279,67003.0,67002.0,0.002946]
[1718119081369,0.01642049,67003.0,67002.0,0.002946]
[1718119081658,0.01642049,67003.0,67002.0,0.35611493]
[1718119081880,0.1,67016.0,67015.0,0.14922]
[1718119082294,0.32742368,67016.0,67015.0,0.14922]
[1718119082739,0.21001923,67016.0,67015.0,0.14922]
[1718119082946,0.31001923,67016.0,67015.0,0.14922]
[1718119083154,0.31001923,67016.0,67015.0,0.164142]
[1718119083381,0.32742368,67016.0,67015.0,0.164142]
[1718119083583,0.32742368,67016.0,67015.0,0.014922]
[1718119083794,0.1953023,67009.0,67003.0,0.298491]
[1718119084016,0.1953023,67006.0,67005.0,0.149242]
[1718119084230,0.21270675,67006.0,67005.0,0.149242]
[1718119084447,0.01471693,67006.0,67005.0,0.1662608]
[1718119085554,0.1953023,67011.0,67010.0,0.149231]
[1718119085774,0.5547112,67000.0,66996.0,0.0321195]
[1718119086002,0.5547112,67000.0,66999.0,0.46583093]
[1718119086209,0.5547112,67000.0,66999.0,0.56583093]
[1718119086458,0.51685409,67000.0,66999.0,1.01359693]
[1718119086661,0.42327581,67000.0,66999.0,1.01829463]
[1718119087314,0.40627581,67000.0,66999.0,1.01359693]
[1718119087538,0.32327581,67000.0,66999.0,1.01829463]
[1718119087742,0.29281629,67000.0,66999.0,1.01829463]
[1718119087894,0.27020131,67000.0,66999.0,1.01829463]
[1718119088105,0.26306131,67000.0,66999.0,1.01829463]
[1718119088308,0.26007612,67000.0,66999.0,1.01459693]
[1718119088714,0.25455,67000.0,66999.0,1.08679463]
[1718119089119,0.20294087,67000.0,66999.0,1.08679463]
[1718119089402,0.1964,67030.0,67026.0,0.149195]
[1718119089604,0.1,67028.0,67026.0,0.149195]
[1718119089814,0.1156849,67027.0,67026.0,0.149195]
[1718119090251,0.3109872,67027.0,67026.0,0.149195]
[1718119090676,0.32839165,67027.0,67026.0,0.149195]
[1718119090875,0.32839165,67027.0,67026.0,0.150195]
[1718119091099,0.42839165,67027.0,67026.0,0.001]
[1718119091495,0.1953023,67021.0,67020.0,0.149207]
[1718119091707,0.21270675,67021.0,67020.0,0.149207]
[1718119092331,0.22753165,67021.0,67020.0,0.149207]
[1718119093189,0.0148249,67021.0,67020.0,0.149207]
[1718119093407,0.22753165,67021.0,67020.0,0.149207]
[1718119093614,0.30890675,67021.0,67009.0,0.1]
[1718119093825,0.3035249,67021.0,67018.0,0.149213]
[1718119094043,0.3035249,67021.0,67020.0,0.149209]
[1718119094253,0.3035249,67021.0,67020.0,0.150209]
[1718119094455,0.3035249,67021.0,67020.0,0.149209]
[1718119094666,0.0148249,67021.0,67020.0,0.149209]
[1718119095089,0.1953023,67023.0,67020.0,0.149209]
[1718119095355,0.0148249,67021.0,67020.0,0.149209]
[1718119095559,0.2953023,67024.0,67020.0,0.150209]
[1718119095759,0.0148249,67021.0,67010.0,0.14431993]
[1718119095965,0.1953023,67023.0,67011.0,0.1]
[1718119096170,0.2953023,67024.0,67020.0,0.001]
[1718119096378,0.2953023,67024.0,67021.0,0.149205]
[1718119096792,0.1,67024.0,67021.0,0.149205]
[1718119096993,0.2953023,67024.0,67021.0,0.149205]
[1718119097778,0.1,67024.0,67021.0,0.149205]
[1718119098046,1.2905,67025.0,67023.0,0.149201]
[1718119098248,1.0,67025.0,67024.0,0.1492]
[1718119099554,1.0,67025.0,67024.0,0.2492]
[1718119100008,1.0,67025.0,67024.0,0.2502]
[1718119100177,1.1953023,67025.0,67024.0,0.2502]
[1718119100408,1.4986023,67025.0,67024.0,0.2502]
[1718119100563,1.51600675,67025.0,67024.0,0.2502]
[1718119100768,1.51600675,67025.0,67024.0,0.1502]
[1718119100964,0.61600675,67025.0,67024.0,0.001]
[1718119101400,0.61600675,67025.0,67018.0,0.149212]
[1718119101596,0.21270675,67019.0,67018.0,0.149212]
[1718119101803,0.1953023,67019.0,67018.0,0.249212]
[1718119102770,0.21270675,67019.0,67018.0,0.249212]
[1718119103305,0.21270675,67019.0,67018.0,0.26756125]
[1718119104586,0.1953023,67019.0,67018.0,0.249212]
[1718119104972,0.1953023,67019.0,67018.0,0.250212]
[1718119105788,0.1953023,67020.0,67019.0,0.149209]
[1718119107142,0.21270675,67020.0,67019.0,0.149209]
[1718119107359,0.31270675,67020.0,67019.0,0.149209]
[1718119107567,0.63360675,67020.0,67019.0,0.149209]
[1718119108541,0.53360675,67020.0,67019.0,0.150209]
[1718119109596,0.63360675,67020.0,67019.0,0.150209]
[1718119109799,0.53360675,67020.0,67019.0,0.150209]
[1718119110439,0.5162023,67020.0,67019.0,0.150209]
[1718119111060,0.1953023,67023.0,67022.0,0.149204]
[1718119112334,0.31270675,67020.0,67019.0,0.150211]
[1718119112755,0.31270675,67020.0,67019.0,0.149211]
[1718119114113,0.31270675,67020.0,67019.0,0.150211]
[1718119116024,0.1953023,67023.0,67019.0,0.001]
[1718119116248,0.21270675,67023.0,67022.0,0.149204]
[1718119116440,0.1953023,67023.0,67022.0,0.149204]
[1718119116663,0.21270675,67023.0,67022.0,0.149204]
[1718119119222,0.1953023,67023.0,67022.0,0.149204]
[1718119119453,0.2953023,67024.0,67023.0,0.149202]
[1718119119678,0.31270675,67024.0,67023.0,0.149202]
[1718119120318,0.2953023,67024.0,67023.0,0.149202]
[1718119120788,0.31270675,67024.0,67023.0,0.150202]
[1718119120999,0.32753526,67024.0,67023.0,0.150202]
[1718119122700,0.11482851,67024.0,67023.0,0.150202]
[1718119122911,0.31013081,67024.0,67023.0,0.150202]
[1718119123981,0.32753526,67024.0,67023.0,0.150202]
[1718119125480,0.50023526,67024.0,67023.0,0.001]
[1718119125695,0.70603526,67024.0,67023.0,0.001]
[1718119125952,0.80603526,67024.0,67023.0,0.001]
[1718119126361,0.80689526,67024.0,67023.0,0.001]
[1718119128431,0.81689526,67024.0,67023.0,0.001]
[1718119129899,0.70689526,67024.0,67023.0,0.001]
[1718119130106,0.81689526,67024.0,67023.0,0.001]
[1718119130522,0.80689526,67024.0,67023.0,0.001]
[1718119130981,0.81689526,67024.0,67023.0,0.001]
[1718119131817,0.80689526,67024.0,67023.0,0.001]
[1718119133597,0.80689526,67024.0,67023.0,0.150202]
[1718119133598,0.32839526,67024.0,67023.0,0.150202]
[1718119136156,0.40055522,67024.0,67023.0,0.150202]
[1718119136537,0.41055522,67024.0,67023.0,0.150202]
[1718119138432,0.51055522,67024.0,67023.0,0.001]
[1718119138638,0.50055522,67024.0,67023.0,0.001]
[1718119139498,0.51055522,67024.0,67023.0,0.001]
[1718119140141,0.50055522,67024.0,67023.0,0.001]
[1718119140369,0.51055522,67024.0,67023.0,0.001]
[1718119140698,0.89975522,67024.0,67023.0,0.001]
[1718119141551,0.81705522,67024.0,67023.0,0.001]
[1718119141889,0.81705522,67024.0,67023.0,0.07837657]
[1718119142092,0.81705522,67024.0,67023.0,0.21466049]
[1718119143141,0.82705522,67024.0,67023.0,0.21466049]
[1718119143551,0.81705522,67024.0,67023.0,0.21466049]
[1718119144030,0.42839526,67024.0,67023.0,0.13728392]
[1718119144245,0.42839526,67024.0,67023.0,0.21465977]
[1718119145106,0.42839526,67024.0,67023.0,0.001]
[1718119145329,0.42839526,67024.0,67023.0,0.21458658]
[1718119146183,0.42839526,67024.0,67023.0,0.21468255]
[1718119146469,0.42839526,67024.0,67023.0,0.36388455]
[1718119148176,0.42839526,67024.0,67023.0,0.28651001]
[1718119148387,0.42839526,67024.0,67023.0,0.36388403]
[1718119149476,0.74709526,67024.0,67023.0,0.36388403]
[1718119151188,0.74709526,67024.0,67023.0,0.28651001]
[1718119151408,0.74709526,67024.0,67023.0,0.36388611]
[1718119152480,0.74709526,67024.0,67023.0,0.36388612]
[1718119153290,0.74709526,67024.0,67023.0,0.28651001]
[1718119153510,0.74709526,67024.0,67023.0,0.36388612]
[1718119154486,0.73709526,67024.0,67023.0,0.36388612]
[1718119154695,0.73709526,67024.0,67023.0,0.3638858]
[1718119154898,0.73709526,67024.0,67023.0,0.2146838]
[1718119155776,0.74709526,67024.0,67023.0,0.2146838]
[1718119157116,0.73709526,67024.0,67023.0,0.2146838]
[1718119157323,0.80979526,67024.0,67023.0,0.2146838]
[1718119157503,0.73709526,67024.0,67023.0,0.2146838]
[1718119157992,0.32839526,67024.0,67023.0,0.3638858]
[1718119158851,0.42839526,67024.0,67023.0,0.3638858]
[1718119162239,0.32839526,67024.0,67023.0,0.3638858]
[1718119163166,0.01568851,67024.0,67023.0,0.3638858]
[1718119163370,0.01568851,67024.0,67023.0,0.5546858]
[1718119164229,0.21099081,67024.0,67023.0,0.5991653]
[1718119164460,0.21099081,67024.0,67023.0,0.5264653]
[1718119164677,0.1961623,67024.0,67023.0,0.5264653]
[1718119164906,0.21356675,67024.0,67023.0,0.4819858]
[1718119165361,0.21356675,67024.0,67023.0,0.4809858]
[1718119165579,0.1961623,67024.0,67023.0,0.4819858]
[1718119165993,0.21100919,67024.0,67023.0,0.4819858]
[1718119166197,0.22841364,67024.0,67023.0,0.4819858]
[1718119166435,0.21100919,67024.0,67023.0,0.4819858]
[1718119166645,0.21100919,67024.0,67023.0,0.40461001]
[1718119166862,0.01570689,67024.0,67023.0,0.48197462]
[1718119168315,0.00086,67024.0,67023.0,0.48197462]
[1718119168517,0.1961623,67024.0,67023.0,0.48197462]
[1718119168747,0.00086,67024.0,67023.0,0.48197462]
[1718119168955,0.01570689,67024.0,67023.0,0.48197462]
[1718119169992,0.01570689,67024.0,67023.0,0.4819768]
[1718119170855,0.00086,67024.0,67023.0,0.4819768]
[1718119171697,0.01570689,67024.0,67023.0,0.4819768]
[1718119171908,0.00086,67024.0,67023.0,0.4819768]
[1718119172117,0.01570689,67024.0,67023.0,0.4819768]
[1718119172332,0.00086,67024.0,67023.0,0.4819768]
[1718119172546,0.01570689,67024.0,67023.0,0.4819768]
[1718119172748,0.00086,67024.0,67023.0,0.4819768]
[1718119172965,0.01570689,67024.0,67023.0,0.50039528]
[1718119173174,0.00086,67024.0,67023.0,0.50039528]
[1718119173386,0.01570689,67024.0,67023.0,0.50039528]
[1718119173594,0.1961623,67024.0,67023.0,0.50039528]
[1718119174239,0.21100919,67024.0,67023.0,0.38229528]
[1718119174449,0.22841364,67024.0,67023.0,0.38229528]
[1718119174909,0.54401364,67024.0,67023.0,0.22756879]
[1718119175113,0.54401364,67024.0,67023.0,0.38230516]
[1718119175774,0.54401364,67024.0,67023.0,0.38130516]
[1718119175996,0.72671364,67024.0,67023.0,0.38130516]
[1718119176221,0.74401364,67024.0,67023.0,0.38130516]
[1718119177310,0.74401364,67024.0,67023.0,0.38230516]
[1718119178610,0.74401364,67024.0,67023.0,0.3823137]
[1718119178818,0.64401364,67024.0,67023.0,0.3813137]
[1718119179029,0.74401364,67024.0,67023.0,0.3813137]
[1718119179237,0.74401364,67024.0,67023.0,0.3823137]
[1718119181568,0.75401364,67024.0,67023.0,0.3823137]
[1718119181781,0.82671364,67024.0,67023.0,0.3823137]
[1718119182427,0.81671364,67024.0,67023.0,0.3823137]
[1718119182602,0.82671364,67024.0,67023.0,0.3823137]
[1718119183099,0.72671364,67024.0,67023.0,0.3823137]
[1718119183335,0.82671364,67024.0,67023.0,0.3823137]
[1718119184911,0.82671364,67024.0,67023.0,0.2331117]
[1718119185373,0.82671364,67024.0,67023.0,0.07837525]
[1718119185586,0.71671364,67024.0,67023.0,0.23312575]
[1718119185790,0.82671364,67024.0,67023.0,0.23312575]
[1718119186013,0.81671364,67024.0,67023.0,0.23312575]
[1718119186233,0.82671364,67024.0,67023.0,0.23312575]
[1718119186364,0.82671364,67024.0,67023.0,0.07837525]
[1718119186587,0.72671364,67024.0,67023.0,0.23312572]
[1718119186987,0.82671364,67024.0,67023.0,0.23312572]
[1718119188125,1.12023357,67024.0,67023.0,0.23312572]
[1718119188379,0.89833357,67024.0,67023.0,0.001]
[1718119188607,0.97103357,67024.0,67023.0,0.001]
[1718119188834,1.07103357,67024.0,67023.0,0.001]
[1718119189062,0.1953023,67009.0,67008.0,0.11931779]
[1718119189287,0.1953023,67011.0,67008.0,0.35146964]
[1718119189533,0.1953023,67016.0,67009.0,0.23215185]
[1718119189800,0.01484322,67015.0,67012.0,0.06137175]
[1718119190041,0.01484322,67015.0,67014.0,0.14557175]
[1718119190294,0.01484322,67015.0,67014.0,0.33325185]
[1718119190295,0.0727,67015.0,67014.0,0.33325185]
[1718119190778,0.0727,67015.0,67014.0,0.37767841]
[1718119191254,0.4718,67022.0,67015.0,0.118]
[1718119191480,0.4718,67022.0,67016.0,0.3764451]
[1718119191695,0.21014552,67021.0,67017.0,0.25583788]
[1718119191910,0.21014552,67021.0,67018.0,0.29905781]
[1718119192117,0.0727,67019.0,67018.0,0.29905781]
[1718119192346,0.1953023,67023.0,67018.0,0.29905543]
[1718119192565,0.0727,67019.0,67018.0,0.14431993]
[1718119192773,0.0727,67019.0,67018.0,0.29905543]
[1718119192977,0.08754322,67019.0,67018.0,0.29905543]
[1718119193393,0.08754322,67019.0,67018.0,0.30005543]
[1718119194206,0.28284552,67019.0,67018.0,0.30005543]
[1718119194613,0.08754322,67019.0,67018.0,0.30005543]
[1718119197133,0.01484322,67019.0,67018.0,0.30005543]
[1718119197335,0.08754322,67019.0,67018.0,0.30005543]
[1718119197588,0.0727,67019.0,67018.0,0.30005543]
[1718119197808,0.08754322,67019.0,67018.0,0.30005543]
[1718119198171,0.01484322,67019.0,67018.0,0.30005739]
[1718119198364,0.0727,67019.0,67018.0,0.31685739]
[1718119198542,0.0727,67019.0,67018.0,0.38356502]
[1718119199391,0.00086,67024.0,67018.0,0.38356502]
[1718119199595,0.00086,67024.0,67018.0,0.22882756]
[1718119199596,0.0727,67019.0,67018.0,0.22882756]
[1718119199801,0.0727,67019.0,67018.0,0.3835565]
[1718119200226,0.00086,67024.0,67018.0,0.31584887]
[1718119200421,0.00086,67024.0,67021.0,0.04446008]
[1718119200631,0.00086,67024.0,67022.0,0.29904887]
[1718119200787,0.01485277,67023.0,67022.0,0.29904887]
[1718119200992,0.01485277,67023.0,67022.0,0.29904216]
[1718119201313,0.01485277,67023.0,67022.0,0.41684216]
[1718119201490,0.07356,67024.0,67022.0,0.41684216]
[1718119201671,0.07356,67024.0,67023.0,0.15472223]
[1718119201876,0.00086,67024.0,67023.0,0.3434961]
[1718119202308,0.00086,67024.0,67023.0,0.29904216]
[1718119202559,0.00086,67024.0,67023.0,0.36573229]
[1718119202773,0.00086,67024.0,67023.0,0.46573229]
[1718119202998,0.00086,67024.0,67023.0,0.4879094]
[1718119203183,0.00086,67024.0,67023.0,0.39903301]
[1718119203434,0.00086,67024.0,67023.0,0.46568839]
[1718119203435,0.07356,67024.0,67023.0,0.46568839]
[1718119203635,0.2688623,67024.0,67023.0,0.46568839]
[1718119204213,0.28626675,67024.0,67023.0,0.39903301]
[1718119204785,0.2688623,67024.0,67023.0,0.39903301]
[1718119204939,0.2688623,67024.0,67023.0,0.40003301]
[1718119205138,0.2688623,67024.0,67023.0,0.39903301]
[1718119205510,0.2688623,67024.0,67023.0,0.40003301]
[1718119206120,0.28626675,67024.0,67023.0,0.40003301]
[1718119206393,0.28626675,67024.0,67023.0,0.4444749]
[1718119206549,0.48886675,67024.0,67023.0,0.15571952]
[1718119206766,0.59156675,67024.0,67023.0,0.15571952]
[1718119207122,0.59156675,67024.0,67023.0,0.25571952]
[1718119207767,0.5741623,67024.0,67023.0,0.25571952]
[1718119207985,0.07356,67024.0,67023.0,0.25472277]
[1718119208413,0.07356,67024.0,67023.0,0.25572277]
[1718119208615,0.2688623,67024.0,67023.0,0.25572277]
[1718119208844,0.28626675,67024.0,67023.0,0.25572277]
[1718119209688,0.2688623,67024.0,67023.0,0.25572277]
[1718119210138,0.07356,67024.0,67023.0,0.25572277]
[1718119210314,0.1961623,67024.0,67023.0,0.25572277]
[1718119210730,0.2688623,67024.0,67023.0,0.25572277]
[1718119210938,0.28373726,67024.0,67023.0,0.2557224]
[1718119211658,0.08843496,67024.0,67023.0,0.2557224]
[1718119213402,0.07356,67024.0,67023.0,0.2557224]
[1718119214016,0.08843496,67024.0,67023.0,0.2557224]
[1718119214224,0.01573496,67024.0,67023.0,0.25572025]
[1718119216299,0.21103726,67024.0,67023.0,0.25572025]
[1718119216540,0.33574171,67024.0,67023.0,0.25572025]
[1718119216747,0.31833726,67024.0,67023.0,0.25572025]
[1718119217543,0.01573496,67024.0,67023.0,0.25572025]
[1718119217965,0.00086,67024.0,67023.0,0.40004018]
[1718119218181,0.01573496,67024.0,67023.0,0.40004018]
[1718119218386,0.01573496,67024.0,67023.0,0.50104018]
[1718119218834,0.01573496,67024.0,67023.0,0.40004018]
[1718119219044,0.00086,67024.0,67023.0,0.56229984]
[1718119219262,0.00086,67024.0,67023.0,0.58452967]
[1718119219887,0.00086,67024.0,67023.0,0.51784018]
[1718119221595,0.00086,67024.0,67023.0,0.51782787]
[1718119222608,0.07356,67024.0,67023.0,0.40002787]
[1718119222837,0.07356,67024.0,67023.0,0.4444691]
[1718119223059,0.08843944,67024.0,67023.0,0.4444691]
[1718119223241,0.08843944,67024.0,67023.0,0.40002787]
[1718119223654,0.5555309,67022.0,67020.0,0.06666185]
[1718119223856,0.5555309,67022.0,67019.0,0.06666185]
[1718119224444,0.01487944,67021.0,67020.0,0.06666185]
[1718119224648,0.01487944,67021.0,67020.0,0.21098178]
[1718119225334,0.01487944,67021.0,67020.0,0.21198178]
[1718119225662,0.01487944,67021.0,67020.0,0.31198178]
[1718119226041,0.01487944,67021.0,67020.0,0.31098178]
[1718119226584,0.01487944,67021.0,67020.0,0.31198178]
[1718119226795,0.01487944,67021.0,67020.0,0.34540323]
[1718119227226,0.5555309,67022.0,67020.0,0.34540323]
[1718119227464,0.01487944,67021.0,67020.0,0.16766185]
[1718119227910,0.01487944,67021.0,67020.0,0.20108121]
[1718119228341,0.01487944,67021.0,67020.0,0.16766185]
[1718119228556,0.0727,67023.0,67020.0,0.06766185]
[1718119228773,0.01487944,67021.0,67020.0,0.101]
[1718119228979,0.0727,67023.0,67020.0,0.1676793]
[1718119229186,0.0727,67023.0,67021.0,0.1]
[1718119229407,0.00086,67024.0,67021.0,0.24431993]
[1718119230296,0.00086,67024.0,67021.0,0.31099923]
[1718119231375,0.00086,67022.0,67021.0,0.31099923]
[1718119231617,0.00086,67022.0,67021.0,0.34442284]
[1718119232048,0.00086,67022.0,67021.0,0.34542284]
[1718119232263,0.00086,67022.0,67021.0,0.34442284]
[1718119232709,0.00086,67022.0,67021.0,0.34542284]
[1718119233389,0.00086,67022.0,67021.0,0.27874354]
[1718119237957,0.01575901,67022.0,67021.0,0.27874354]
[1718119238167,0.00086,67022.0,67021.0,0.27874354]
[1718119238373,0.01575901,67022.0,67021.0,0.27874354]
[1718119238574,0.00086,67022.0,67021.0,0.27874354]
[1718119238750,0.01575901,67022.0,67021.0,0.27874354]
[1718119238951,0.00086,67022.0,67021.0,0.27874354]
[1718119240914,0.01575901,67022.0,67021.0,0.27874354]
[1718119241127,0.00086,67022.0,67021.0,0.27874354]
[1718119241772,0.01575901,67022.0,67021.0,0.27874354]
[1718119241980,0.00086,67022.0,67021.0,0.27874354]
[1718119242459,0.01575901,67022.0,67021.0,0.27874354]
[1718119242672,0.00086,67022.0,67021.0,0.27874354]
[1718119242911,0.01575901,67022.0,67021.0,0.27874354]
[1718119243504,0.00086,67022.0,67021.0,0.27874354]
[1718119244119,0.01575901,67022.0,67021.0,0.27874354]
[1718119245819,0.00086,67022.0,67021.0,0.27874354]
[1718119246232,0.01575901,67022.0,67021.0,0.27874354]
[1718119246523,0.00086,67022.0,67021.0,0.27874354]
[1718119248551,0.00086,67022.0,67021.0,0.41221726]
[1718119249403,0.00086,67022.0,67021.0,0.27874354]
[1718119254101,0.01576115,67022.0,67021.0,0.27874354]
[1718119254306,0.00086,67022.0,67021.0,0.27874354]
[1718119254521,0.01576115,67022.0,67021.0,0.27874354]
[1718119257120,0.69632786,67022.0,67021.0,0.13442361]
[1718119257391,0.79632786,67022.0,67021.0,0.09005951]
[1718119257670,0.79632786,67022.0,67021.0,0.001]
[1718119257905,0.92932786,67022.0,67021.0,0.001]
[1718119259584,0.32270675,67020.0,67019.0,0.000946]
[1718119259773,0.73490675,67020.0,67019.0,0.000946]
[1718119259957,0.72490675,67020.0,67019.0,0.000946]
[1718119260157,0.74970532,67020.0,67019.0,0.000946]
[1718119260401,0.83970532,67020.0,67019.0,0.000946]
[1718119260618,0.76700532,67020.0,67019.0,0.000946]
[1718119260827,0.83970532,67020.0,67019.0,0.000946]
[1718119261044,0.84970532,67020.0,67019.0,0.000946]
[1718119261276,0.84970532,67020.0,67019.0,0.001946]
[1718119261489,0.83970532,67020.0,67019.0,0.001946]
[1718119261701,0.84970532,67020.0,67019.0,0.001946]
[1718119263821,0.76700532,67020.0,67019.0,0.001946]
[1718119264028,0.84970532,67020.0,67019.0,0.001946]
[1718119264235,0.83970532,67020.0,67019.0,0.001946]
[1718119264793,0.73970532,67020.0,67019.0,0.001946]
[1718119264996,0.71670532,67020.0,67019.0,0.001946]
[1718119268647,0.72670532,67020.0,67019.0,0.001946]
[1718119268855,0.71670532,67020.0,67019.0,0.001946]
[1718119269488,0.82670532,67020.0,67019.0,0.001946]
[1718119269935,0.83970532,67020.0,67019.0,0.001946]
[1718119273673,0.73970532,67020.0,67019.0,0.001946]
[1718119273873,0.83970532,67020.0,67019.0,0.001946]